fUST/lending_fUST_20240103
["ID","MTS","AMOUNT","RATE_DAILY","PERIOD"]
[309971297,1704244154176,-2647.99744307,0.00029884,2]
[309971298,1704244154197,-3042.05245481,0.00029899,2]
[309971299,1704244154217,-316.92120077,0.000299,2]
[309971300,1704244154238,-2078.15203413,0.000299,2]
[309971301,1704244154257,-1000.0,0.000299,2]
[309971302,1704244154276,-566.19194991,0.000299,2]
[309971303,1704244154295,-1000.0,0.000299,7]
[309971304,1704244154316,-200.0,0.00032889,15]
[309971305,1704244154339,-1000.0,0.00034,7]
[309971306,1704244154358,-515.223503,0.00035366,2]
[309971307,1704244154379,-171.444269,0.00035775,120]
[309971308,1704244154399,-167.4210248,0.00035836,2]
[309971309,1704244154422,-280.0,0.00036178,15]
[309971310,1704244154442,-515.223503,0.00036674,2]
[309971311,1704244173030,1533.36141353,0.00029884,2]
[309971398,1704244237914,-154.82968734,0.00037982,5]
[309971399,1704244237924,-372.29985722,0.00037983,2]
[309971400,1704244237936,-142.92364578,0.00037983,2]
[309971401,1704244237946,-364.90394049,0.00038292,2]
[309971402,1704244237956,-445.34564796,0.00038546,2]
[309971403,1704244237965,-515.223503,0.00039291,2]
[309971404,1704244237976,-150.0,0.00039808,2]
[309971405,1704244237987,-156.0,0.0004,2]
[309971406,1704244237997,-2750.02770523,0.0004,3]
[309971407,1704244238009,-492.68133125,0.0004,3]
[309971408,1704244238021,-1690.3568932,0.0004,3]
[309971419,1704244240893,-3091.63341493,0.0004,3]
[309971451,1704244242779,-343.49604143,0.0004,3]
[309973100,1704245148099,-781.72443064,0.00029893,2]
[309973101,1704245148119,-885.10649261,0.00029893,2]
[309973104,1704245227089,-154.81422293,0.00029594,2]
[309973105,1704245227110,-250.36012216,0.00029788,5]
[309973108,1704245240106,-343.32706477,0.00029593,2]
[309973109,1704245240128,-251.30005965,0.00029788,5]
[309973116,1704245349152,-944.12890389,0.0002949,2]
[309973117,1704245349173,-254.86954284,0.00029491,2]
[309973118,1704245349196,-154.81422293,0.00029492,4]
[309973119,1704245349217,-191.00075839,0.00029493,5]
[309973120,1704245349239,-154.87608985,0.00029594,2]
[309973121,1704245349259,-2535.04371234,0.00029891,2]
[309973122,1704245349280,-2698.01438762,0.00029892,5]
[309973123,1704245349301,-6965.99439024,0.00029893,2]
[309973124,1704245349321,-2801.45169585,0.00029894,2]
[309973125,1704245349342,-157.0194235,0.0003,4]
[309973126,1704245349363,-154.84515485,0.0003,60]
[309973127,1704245349383,-685.0872895,0.00032997,4]
[309973128,1704245349404,-200.0,0.00032998,15]
[309973129,1704245349425,-521.0003647,0.00033489,2]
[309973130,1704245349447,-1000.0,0.00034,7]
[309973131,1704245349469,-1000.0,0.00034108,7]
[309973132,1704245349490,-309.6903097,0.00034109,2]
[309973133,1704245349623,-150.0,0.00036,2]
[309973134,1704245349645,-280.0,0.00036298,15]
[309973135,1704245349666,-259.9385079,0.00036845,2]
[309973137,1704245371095,-154.84515485,0.0003,60]
[309973198,1704245432068,-17659.17910066,0.0003,14]
[309973199,1704245432079,-290.049313,0.00036845,120]
[309973200,1704245432091,-200.0,0.00037205,2]
[309973201,1704245432102,-389.952486,0.00037236,2]
[309973202,1704245432113,-150.0,0.00037644,2]
[309973203,1704245432124,-3879.57115979,0.00037688,2]
[309973204,1704245432135,-154.81422293,0.00037899,5]
[309973205,1704245432146,-364.1872078,0.000379,2]
[309973206,1704245432156,-669.8790554,0.00038,120]
[309973207,1704245432166,-485.73017599,0.00038288,2]
[309973208,1704245432176,-211.34385757,0.00038302,2]
[309973209,1704245432188,-389.952486,0.00038613,2]
[309973210,1704245432198,-8677.61,0.0003899,3]
[309973211,1704245432209,-21013.26197871,0.00039,3]
[309973212,1704245432223,-1809.22162382,0.00039,3]
[309973255,1704245438163,-521.0003647,0.0003899,3]
[309973256,1704245438176,-8156.6096353,0.0003899,3]
[309973257,1704245438186,-32070.35974239,0.00039,3]
[309973258,1704245438195,-559.25397342,0.00039596,4]
[309973259,1704245438204,-10413.14,0.0003998,3]
[309973260,1704245438213,-6529.15,0.0003999,3]
[309973261,1704245438223,-799.13337814,0.0003999,3]
[309973262,1704245438236,-527.12954456,0.0003999,3]
[309973263,1704245438247,-10220.23964293,0.0003999,3]
[309973265,1704245441234,-389.952486,0.00039991,2]
[309973266,1704245441244,-1079.48401711,0.0004,3]
[309973289,1704245445978,-730.49512887,0.00038307,2]
[309973290,1704245445988,-4646.12807066,0.0004,3]
[309973342,1704246429148,-154.81422293,0.00029998,4]
[309973343,1704246429183,-410.5029537,0.00029998,2]
[309973344,1704246532838,-1339.1201639,0.0003,14]
[309973345,1704246532887,-27201.985507,0.00033,14]
[309973346,1704246533039,-217.536984,0.00035616,120]
[309973347,1704246533063,-1423.8203611,0.00038,120]
[309973348,1704246545097,-559.68125324,0.00029697,2]
[309973349,1704246545117,-155.23390359,0.00029698,2]
[309973350,1704246545138,-264.74772312,0.00029898,2]
[309973351,1704246545158,-171.97273447,0.00029899,2]
[309973352,1704246545178,-2124.6486046,0.00029998,2]
[309973353,1704246545198,-1350.04520168,0.00029998,5]
[309973354,1704246545218,-20.44200454,0.00029998,2]
[309973355,1704246545244,-134.37221839,0.00029998,2]
[309973356,1704246545265,-2065.74062533,0.00029999,2]
[309973357,1704246545286,-177.690095,0.00031978,2]
[309973358,1704246545305,-177.690095,0.00031978,2]
[309973359,1704246545325,-177.690095,0.00031978,2]
[309973360,1704246545346,-330.3458987,0.00032851,2]
[309973361,1704246545366,-1000.0,0.00034,7]
[309973362,1704246545385,-194.976243,0.00034521,2]
[309973363,1704246545404,-150.0,0.00035452,2]
[309973364,1704246545426,-194.976243,0.00036224,2]
[309973365,1704246561680,154.81422293,0.00029998,2]
[309973366,1704246564171,1230.99394935,0.00036224,5]
[309973404,1704246632163,-4438.83004859,0.00029799,2]
[309973406,1704246632173,-154.81422293,0.00036223,5]
[309973408,1704246632184,-121.06497963,0.00036224,5]
[309973410,1704246632196,-167.72127,0.00036224,4]
[309973412,1704246632205,-247.54824578,0.0003789,2]
[309973414,1704246632216,-194.976243,0.00037927,2]
[309973416,1704246632226,-61.92082078,0.00038,120]
[309973418,1704246632235,-836.34247354,0.00038546,2]
[309973420,1704246632244,-328.0,0.0003874,2]
[309973421,1704246632253,-8720.0,0.00039,2]
[309973422,1704246632263,-194.976243,0.0003963,2]
[309973423,1704246632272,-152.47630933,0.0003992,2]
[309973424,1704246632281,-13099.27,0.00039989,3]
[309973425,1704246632290,-10916.05,0.00039989,3]
[309973426,1704246632301,-9096.71,0.00039989,3]
[309973427,1704246632311,-7580.59,0.00039989,3]
[309973428,1704246632320,-1825.79583182,0.00039999,30]
[309973429,1704246632332,-35953.36101306,0.00039999,30]
[309973430,1704246632341,-33173.91202285,0.00039999,4]
[309973431,1704246632351,-5934.26366752,0.0004,3]
[309973432,1704246632360,-154.84515485,0.0004,4]
[309973433,1704246632369,-154.84515485,0.0004,4]
[309973434,1704246632379,-154.81422293,0.0004,30]
[309973435,1704246632389,-2998.75034603,0.0004,4]
[309973436,1704246632399,-155.05610134,0.0004,2]
[309973437,1704246632408,-169.91421862,0.0004,30]
[309973438,1704246632417,-155.84017697,0.0004,14]
[309973439,1704246632427,-360.16576349,0.0004,4]
[309973440,1704246632436,-2281.66863018,0.0004,4]
[309973478,1704246639048,-521.0003647,0.0004,4]
[309973481,1704246639061,-3142.29409783,0.0004,4]
[309973483,1704246639070,-12568.95609042,0.00041,10]
[309973485,1704246639080,-239.79051026,0.00041421,4]
[309973487,1704246639089,-7539.00412724,0.00041421,4]
[309973489,1704246639097,-217.536984,0.00041553,120]
[309973491,1704246639107,-200.0,0.00041971,2]
[309973492,1704246639116,-200.0,0.00041987,2]
[309973493,1704246639126,-200.0,0.00041993,2]
[309973495,1704246639135,-2189.74530487,0.00042,2]
[309973496,1704246639145,-1000.0,0.00042652,7]
[309973497,1704246639155,-159.05819567,0.00042653,5]
[309973498,1704246639166,-247.54824578,0.0004289,2]
[309973499,1704246639176,-724.17633941,0.00043887,30]
[309973500,1704246639186,-593.65153966,0.00044698,2]
[309973501,1704246639196,-6591.78100281,0.000448,30]
[309973502,1704246639205,-150.0,0.0004487,60]
[309973503,1704246639215,-150.0,0.0004488,60]
[309973504,1704246639224,-150.0,0.0004489,60]
[309973505,1704246639233,-707.47983777,0.00044898,4]
[309973506,1704246639242,-271.35243145,0.00044898,4]
[309973507,1704246639252,-180.44799942,0.00044898,2]
[309973508,1704246639261,-260.478732,0.00044898,4]
[309973509,1704246639270,-175.1993806,0.00044898,2]
[309973510,1704246639279,-154.90705577,0.00044898,4]
[309973511,1704246639288,-329.31392712,0.00044898,4]
[309973512,1704246639298,-1134.80188716,0.00044898,4]
[309973513,1704246639308,-241.64792197,0.00044898,30]
[309973514,1704246639317,-160.49045629,0.00044898,4]
[309973515,1704246639327,-3494.86934315,0.00044898,4]
[309973516,1704246639336,-2816.63158754,0.00044898,4]
[309973517,1704246639346,-498.15523803,0.00044898,4]
[309973518,1704246639356,-194.19729155,0.00044898,4]
[309973519,1704246639365,-851.62044368,0.00044898,4]
[309973520,1704246639374,-510.79992709,0.00044898,7]
[309973521,1704246639383,-569.4761901,0.00044898,4]
[309973522,1704246639393,-1572.39221215,0.00044898,4]
[309973523,1704246639402,-3851.22045542,0.00044898,2]
[309973524,1704246639411,-242.83754625,0.00044898,7]
[309973525,1704246639420,-2701.73501351,0.00044898,4]
[309973526,1704246639430,-766.53184072,0.00044898,2]
[309973527,1704246639439,-154.82968734,0.00044898,4]
[309973528,1704246639448,-422.68788522,0.00044898,5]
[309973529,1704246639492,-527.12954456,0.00044898,5]
[309973530,1704246639504,-100.26043331,0.00044898,5]
[309973531,1704246639514,-343.04485059,0.00044898,4]
[309973532,1704246639523,-685.0872895,0.00044898,4]
[309973533,1704246639533,-568.97080488,0.00044898,4]
[309973579,1704246645435,-1952.7983523,0.00044898,4]
[309973605,1704246646276,-668.41335642,0.00044898,4]
[309973606,1704246646286,-422.21724325,0.00044898,2]
[309973607,1704246646296,-1027.09060854,0.00044898,5]
[309973608,1704246646305,-1519.82614493,0.00044898,4]
[309973609,1704246646316,-311.51525987,0.00044898,2]
[309973610,1704246646325,-156.89770268,0.00044898,20]
[309973611,1704246646334,-260.38444713,0.00044898,14]
[309973612,1704246646344,-5649.70995048,0.00044898,30]
[309973613,1704246646354,-2285.68928021,0.00044898,4]
[309973614,1704246646364,-2710.11372124,0.00044898,120]
[309973615,1704246646374,-562.493484,0.00044898,4]
[309973616,1704246646384,-191.35816884,0.00044898,4]
[309973617,1704246646394,-2028.12124664,0.00044898,4]
[309973618,1704246646403,-351.641807,0.00044898,7]
[309973619,1704246646413,-351.641807,0.00044898,7]
[309973620,1704246646423,-351.641807,0.00044898,7]
[309973621,1704246646432,-351.641807,0.00044898,7]
[309973622,1704246646441,-185.222509,0.00044898,7]
[309973623,1704246646451,-185.222509,0.00044898,7]
[309973624,1704246646460,-185.222509,0.00044898,7]
[309973625,1704246646469,-185.222509,0.00044898,7]
[309973626,1704246646479,-153.435386,0.00044898,2]
[309973627,1704246646488,-153.435386,0.00044898,2]
[309973628,1704246646498,-173.23,0.00044899,7]
[309973629,1704246646508,-250.0,0.00044899,10]
[309973630,1704246646517,-443.24207364,0.00044899,2]
[309973631,1704246646527,-173.24,0.00044899,7]
[309973632,1704246646536,-170.50984345,0.000449,3]
[309973633,1704246646546,-8941.97942268,0.000449,6]
[309973635,1704246833882,414.0,0.00027998,2]
[309973639,1704246866568,397.88561411,0.00022,2]
[309973641,1704246925929,1016.11438589,0.00022,2]
[309973642,1704246925952,3396.27149115,0.00022,2]
[309973643,1704246939919,1303.41390867,0.00022,2]
[309973644,1704247294303,-154.81422293,0.00027988,2]
[309973645,1704247294334,-154.81422293,0.00027988,2]
[309973646,1704247294363,-154.81422293,0.00027989,4]
[309973647,1704247294393,-5107.5731205,0.00027998,2]
[309973648,1704247294421,-1320.81396188,0.000297,2]
[309973649,1704247294449,-169.09011406,0.0002986,2]
[309973650,1704247294478,-4348.32298774,0.0003,3]
[309973651,1704247303861,562.64906392,0.00022,2]
[309973652,1704247651277,-154.81422293,0.00029849,4]
[309973653,1704247651297,-1113.80153826,0.00029849,2]
[309973654,1704247651319,-505.8171371,0.0002985,2]
[309973655,1704247651343,-161.599958,0.00032514,2]
[309973656,1704247651364,-1774.60609081,0.00033999,4]
[309973657,1704247651386,-1000.0,0.00034519,7]
[309973658,1704247651408,-344.717313,0.00034521,2]
[309973659,1704247651430,-161.599958,0.0003473,2]
[309973660,1704247651451,-3211.32208562,0.00035,3]
[309973661,1704247764127,-7484.38204221,0.00035,3]
[309973662,1704247764149,-344.717313,0.00035798,2]
[309973663,1704247764171,-1125.9983744,0.00036874,120]
[309973664,1704247764191,-195.0,0.00037,2]
[309973665,1704247764212,-216.32108733,0.00037075,2]
[309973683,1704247833797,-154.81422293,0.00037074,5]
[309973684,1704247833807,-128.39622567,0.00037075,2]
[309973685,1704247833817,-344.717313,0.00038352,2]
[309973686,1704247833828,-777.557395,0.00038374,2]
[309973687,1704247833837,-777.557395,0.00038374,2]
[309973688,1704247833847,-175.88990766,0.00038374,2]
[309973709,1704247838701,-521.0003647,0.00038374,2]
[309973710,1704247838713,-80.66712264,0.00038374,2]
[309973711,1704247838723,-777.557395,0.00038374,2]
[309973712,1704247838733,-777.557395,0.00038374,2]
[309973713,1704247838743,-312.616614,0.00038925,2]
[309973714,1704247838754,-161.599958,0.0003899,2]
[309973715,1704247838763,-279.643568,0.00039158,120]
[309973716,1704247838772,-177.7590882,0.00039502,2]
[309973717,1704247838781,-344.717313,0.0003963,2]
[309973718,1704247838791,-1492.9907713,0.00039835,2]
[309973719,1704247838800,-169.69161421,0.00040308,9]
[309973720,1704247838809,-240.2236437,0.00040408,4]
[309973721,1704247838819,-7577.00785969,0.00040408,4]
[309973722,1704247838828,-618.77863236,0.00041093,4]
[309973723,1704247838839,-1000.0,0.00041094,7]
[309973724,1704247838849,-2028.12124664,0.00041095,4]
[309973725,1704247838857,-347.9859731,0.00041096,15]
[309973726,1704247838866,-200.0,0.0004196,2]
[309973727,1704247838875,-200.0,0.00041967,2]
[309973728,1704247838884,-200.0,0.00041994,2]
[309973729,1704247838894,-300.0,0.0004221,30]
[309973730,1704247838903,-162.38631166,0.00042653,5]
[309973731,1704247838913,-1308.57975578,0.00042794,4]
[309973732,1704247838922,-491.78248112,0.00042797,4]
[309973733,1704247838931,-165.03216385,0.00042798,2]
[309973734,1704247838940,-1500.0,0.00044,2]
[309973735,1704247838949,-1500.0,0.00044,2]
[309973736,1704247838958,-1500.0,0.00044,2]
[309973737,1704247838967,-1500.0,0.00044,2]
[309973738,1704247838977,-14488.82040096,0.00044798,2]
[309973739,1704247838986,-6593.45201072,0.000448,30]
[309973740,1704247838995,-281.17989829,0.00044853,2]
[309973741,1704247839005,-239.0,0.0004487,60]
[309973742,1704247839013,-239.0,0.0004488,60]
[309973743,1704247839023,-6317.16,0.00044888,3]
[309973744,1704247839033,-239.0,0.0004489,60]
[309973745,1704247839041,-1500.37576607,0.00044897,2]
[309973746,1704247839051,-243.14142942,0.00044898,7]
[309973747,1704247839061,-2719.47337377,0.00044898,4]
[309973748,1704247839071,-155.4858064,0.00044898,4]
[309973749,1704247839082,-96.85913637,0.00044898,30]
[309973750,1704247839094,-58.48392841,0.00044898,30]
[309973751,1704247839103,-468.64561615,0.00044898,2]
[309973792,1704247844919,-305.3035473,0.00044898,2]
[309973793,1704247844929,-509.99072667,0.00044898,4]
[309973795,1704247844938,-1580.10975908,0.00044898,4]
[309973796,1704247844948,-529.2864145,0.00044898,7]
[309973798,1704247844957,-574.48698367,0.00044898,4]
[309973799,1704247844966,-155.62651793,0.00044898,4]
[309973800,1704247844975,-1132.18119695,0.00044898,2]
[309973816,1704247846445,-744.20753364,0.00044898,2]
[309973817,1704247846491,-239.26687141,0.00044898,2]
[309973818,1704248746099,-1666.83092325,0.00037601,4]
[309973833,1704249032605,-618.77863236,0.00037581,4]
[309973834,1704249032615,-432.55498736,0.00037582,4]
[309973835,1704249032626,-229.99225833,0.00037582,4]
[309973836,1704249032637,-1000.0,0.00037582,7]
[309973838,1704249032648,-154.81422293,0.00037582,4]
[309973840,1704249032657,-154.81422293,0.00037583,4]
[309973842,1704249032667,-1774.60609081,0.00037584,4]
[309973844,1704249032677,-154.81422293,0.00037584,5]
[309973846,1704249032687,-1050.54870749,0.00037585,3]
[309973848,1704249032696,-2808.26480597,0.00037585,4]
[309973850,1704249032706,-4033.54542916,0.00037601,4]
[309973852,1704249032716,-161.5999585,0.00037603,2]
[309973854,1704249032725,-172.358657,0.00037795,2]
[309973857,1704249032734,-431.356455,0.00037843,2]
[309973860,1704249032744,-431.356455,0.00037843,2]
[309973862,1704249032753,-431.356455,0.00037843,2]
[309973863,1704249032762,-431.356455,0.00037843,2]
[309973865,1704249032772,-431.356455,0.00037843,2]
[309973866,1704249032781,-312.616614,0.00037904,2]
[309973868,1704249032790,-1035.7977807,0.00037948,2]
[309973869,1704249032801,-177.7590882,0.00038234,2]
[309973870,1704249032810,-208.17007543,0.00038307,2]
[309973871,1704249032819,-1492.9907713,0.00038488,2]
[309973872,1704249032829,-365.46289408,0.00038546,2]
[309973873,1704249032840,-209.732676,0.00038846,120]
[309973874,1704249032849,-156.0,0.00040384,2]
[309973875,1704249032859,-311.2913057,0.00040404,4]
[309973876,1704249032868,-240.2236437,0.00040408,4]
[309973877,1704249032877,-7577.00785969,0.00040408,4]
[309973878,1704249032886,-169.69161421,0.00040994,10]
[309973879,1704249032896,-1000.64507919,0.00041094,2]
[309973880,1704249032905,-29251.88284407,0.00041095,4]
[309973881,1704249032915,-1488.5541722,0.00041096,15]
[309973882,1704249032925,-252.28288387,0.00041347,30]
[309973890,1704249038742,-47.71711613,0.00041347,30]
[309973891,1704249038752,-200.0,0.00041961,2]
[309973892,1704249038763,-200.0,0.00041964,2]
[309973893,1704249038774,-73.28324857,0.00041993,2]
[309973894,1704249038786,-126.71675143,0.00041993,2]
[309973895,1704249038797,-6351.23991092,0.00042,5]
[309973896,1704249038808,-162.38631166,0.00042653,5]
[309973897,1704249038817,-150.80395486,0.00042764,30]
[309973898,1704249038826,-244.06175677,0.00042798,2]
[309973899,1704249038835,-172.358657,0.00043389,2]
[309973900,1704249038844,-150.80395486,0.00043637,7]
[309973901,1704249038853,-724.4305136,0.00043887,30]
[309973902,1704249038862,-206.0,0.00043918,4]
[309973903,1704249038872,-10750.45,0.00044439,3]
[309973904,1704249038882,-2128.92479733,0.00044449,4]
[309973905,1704249038894,-150.80395486,0.00044527,4]
[309973906,1704249038903,-235.45206446,0.0004477,2]
[309973907,1704249038912,-235.45206444,0.00044778,2]
[309973908,1704249038923,-235.45206444,0.00044785,2]
[309973909,1704249038932,-235.45206444,0.00044793,2]
[309973910,1704249038941,-7019.8711888,0.000448,2]
[309973911,1704249038950,-235.45206444,0.000448,2]
[309973912,1704249038960,-281.17989829,0.00044853,2]
[309973913,1704249038969,-777.61585982,0.00044853,4]
[309973914,1704249038979,-239.0,0.0004487,60]
[309973915,1704249038988,-239.0,0.0004488,60]
[309973916,1704249038998,-239.0,0.0004489,60]
[309973917,1704249039007,-1026.63637196,0.0004489,30]
[309973918,1704249039016,-1833.77734134,0.00044898,2]
[309973919,1704249039025,-242.96143164,0.00044898,30]
[309973920,1704249039034,-335.75557436,0.00044898,4]
[309973921,1704249039044,-272.92943641,0.00044898,4]
[309973922,1704249039053,-261.55068546,0.00044898,4]
[309973923,1704249039062,-2831.49064931,0.00044898,4]
[309973924,1704249039072,-710.87957776,0.00044898,4]
[309973925,1704249039081,-3508.21102599,0.00044898,4]
[309973926,1704249039090,-180.57748244,0.00044898,2]
[309973927,1704249039100,-194.71254098,0.00044898,4]
[309973928,1704249039109,-1159.11136911,0.00044898,4]
[309973929,1704249039118,-175.43169557,0.00044898,2]
[309973930,1704249039128,-155.86013939,0.00044898,4]
[309973931,1704249039137,-293.21551833,0.00044898,4]
[309973932,1704249039147,-155.32699251,0.00044898,4]
[309973933,1704249039156,-358.80201833,0.00044898,2]
[309973934,1704249039166,-1032.90485378,0.00044898,4]
[309973935,1704249039176,-255.64776253,0.00044898,2]
[309973936,1704249039186,-243.14142942,0.00044898,7]
[309973937,1704249039195,-155.34306478,0.00044898,30]
[309973938,1704249039204,-155.4858064,0.00044898,4]
[309973939,1704249039214,-2719.47337377,0.00044898,4]
[309973940,1704249039223,-468.64561615,0.00044898,2]
[309973941,1704249039232,-2077.46901245,0.00044898,4]
[309973942,1704249039242,-879.95831043,0.00044898,4]
[309973943,1704249039252,-1075.56933581,0.00044898,4]
[309973944,1704249039261,-2263.70040641,0.00044898,4]
[309973945,1704249039271,-155.39201092,0.00044898,4]
[309973946,1704249039280,-210.53392699,0.00044898,4]
[309973947,1704249039290,-1845.2441361,0.00044898,14]
[309973948,1704249039304,-527.12954456,0.00044898,14]
[309973949,1704249039317,-50012.35528445,0.00044898,14]
[309973950,1704249039326,-155.62730664,0.00044898,4]
[309973951,1704249039337,-155.33874318,0.00044898,4]
[309973952,1704249039347,-156.31777303,0.00044898,4]
[309973953,1704249039357,-1616.56001994,0.00044898,4]
[309973954,1704249039366,-247.15901399,0.00044898,4]
[309973955,1704249039374,-515.36035354,0.00044898,4]
[309973956,1704249039383,-222.23814354,0.00044898,4]
[309973957,1704249039392,-870.90423159,0.00044898,4]
[309973958,1704249039402,-491.78248112,0.00044898,4]
[309973959,1704249039411,-1308.57975678,0.00044898,4]
[309973960,1704249039421,-489.80629401,0.00044898,4]
[309973961,1704249039430,-250.87689731,0.00044898,4]
[309973962,1704249039439,-177.64349609,0.00044898,4]
[309973963,1704249039448,-503.52851247,0.00044898,4]
[309973964,1704249039458,-925.17539461,0.00044898,4]
[309973965,1704249039467,-155.74641632,0.00044898,4]
[309973966,1704249039476,-2456.04596301,0.00044898,4]
[309973967,1704249039486,-151.0,0.00044898,2]
[309973968,1704249039495,-151.0,0.00044898,2]
[309973969,1704249039504,-324.834726,0.00044898,7]
[309973970,1704249039514,-324.834726,0.00044898,7]
[309973971,1704249039527,-151.0,0.00044899,7]
[309973972,1704249039536,-459.31,0.00044899,7]
[309973973,1704249039545,-459.31,0.00044899,7]
[309973974,1704249039555,-459.31,0.00044899,7]
[309973975,1704249039564,-459.31,0.00044899,7]
[309973976,1704249039573,-459.31,0.00044899,7]
[309973977,1704249039582,-459.31,0.00044899,7]
[309973978,1704249039591,-459.31,0.00044899,7]
[309973979,1704249039601,-459.31,0.00044899,7]
[309973980,1704249039610,-1500.37576607,0.00044899,2]
[309973981,1704249039620,-256.22846127,0.00044899,10]
[309973982,1704249039629,-485.70184632,0.00044899,2]
[309973983,1704249039639,-28026.31196208,0.000449,6]
[309974008,1704249041804,-533.77421894,0.0004489,3]
[309974009,1704249041817,-261.546,0.0004489,3]
[309974010,1704249041828,-616.6424234,0.0004489,3]
[309974078,1704249043619,-1884.59060763,0.0004489,3]
[309974079,1704249043631,-2831.71404576,0.0004489,3]
[309974899,1704250238855,-666.4896426,0.00038276,5]
[309974900,1704250238865,-1774.60609081,0.00038277,4]
[309974901,1704250238875,-618.77863236,0.00038278,4]
[309974902,1704250238884,-1000.0,0.00038279,7]
[309974903,1704250238893,-154.81422293,0.00038279,5]
[309974904,1704250238902,-163.96054416,0.00038316,2]
[309974905,1704250238911,-202.9469919,0.00042602,2]
[309974906,1704250238920,-275.369835,0.00042607,120]
[309974907,1704250238929,-225.636412,0.00042683,2]
[309974908,1704250238939,-212.70783784,0.000428,2]
[309974909,1704250238948,-312.616614,0.00042996,2]
[309974910,1704250238957,-225.636412,0.00044262,2]
[309974911,1704250238969,-2128.92479733,0.00044449,4]
[309974912,1704250238979,-150.0,0.00044767,2]
[309974913,1704250238989,-235.45206446,0.00044798,2]
[309974914,1704250239003,-235.45206444,0.00044799,2]
[309974915,1704250239012,-235.45206444,0.00044799,2]
[309974916,1704250239022,-235.45206444,0.000448,2]
[309974917,1704250239032,-4365.78742918,0.000448,2]
[309974918,1704250239045,-10123.03297178,0.000448,2]
[309974919,1704250239055,-3850.80132031,0.000448,110]
[309974920,1704250239065,-235.45206444,0.000448,2]
[309974921,1704250239074,-281.17989829,0.00044853,2]
[309974922,1704250239085,-777.61585982,0.00044853,4]
[309974923,1704250239095,-239.0,0.0004487,60]
[309974924,1704250239105,-14429.49765254,0.0004488,120]
[309974925,1704250239114,-239.0,0.0004488,60]
[309974926,1704250239124,-8630.56,0.00044888,3]
[309974927,1704250239134,-682.25515097,0.00044888,3]
[309974928,1704250239147,-527.12954456,0.00044888,3]
[309974966,1704250243769,-5982.74530447,0.00044888,3]
[309974968,1704250243779,-222.23814354,0.0004489,4]
[309974970,1704250243788,-284.19660255,0.0004489,4]
[309975606,1704250464583,-5000.0,0.0002979,7]
[309975607,1704250464822,-654.02889962,0.0002979,7]
[309975608,1704250524603,-154.81422293,0.0002979,2]
[309975609,1704250524632,-148.62165401,0.0002979,2]
[309975610,1704250524798,-6.19256892,0.0002979,2]
[309975611,1704250524872,297.24330802,0.0002979,2]
[309975612,1704250524916,-303.43587694,0.0002979,2]
[309975613,1704250525204,-3811.70669208,0.0002979,2]
[309975614,1704250526835,221.13302556,0.0002979,2]
[309975615,1704250526863,324.86028753,0.0002979,2]
[309975616,1704250530423,-671.89141653,0.0002979,2]
[309975617,1704250530607,-13.71206972,0.0002979,2]
[309975618,1704250539246,-154.81422293,0.0002979,2]
[309975619,1704250539275,-2930.43309002,0.0002979,2]
[309975620,1704250539358,-62.96423088,0.0002979,2]
[309975621,1704250540234,223.84097512,0.0002979,2]
[309975622,1704250543248,-535.07344683,0.0002979,2]
[309975623,1704250543529,-10.91986626,0.0002979,2]
[309975624,1704250552425,-671.89141653,0.0002979,2]
[309975625,1704250552571,-13.71206972,0.0002979,2]
[309975626,1704250557153,-2942.06803602,0.0002979,2]
[309975627,1704250557275,-60.04220482,0.0002979,2]
[309975628,1704250562147,-157.81397492,0.0002979,2]
[309975629,1704250562176,-148.56165897,0.0002979,2]
[309975630,1704250562357,-6.25256396,0.0002979,2]
[309975631,1704250571355,-1729.78528016,0.0002979,2]
[309975632,1704250571622,-35.30174041,0.0002979,2]
[309975633,1704250572034,468.24871539,0.0002979,2]
[309975634,1704250616101,-154.81422293,0.00029789,2]
[309975635,1704250616131,-148.62165401,0.0002979,2]
[309975636,1704250616393,-6.19256892,0.0002979,2]
[309975637,1704250673844,-154.81422293,0.00029789,4]
[309975638,1704250673872,-312.83970965,0.00029789,2]